lending/lending_fUSD_20250917
["ID","MTS","AMOUNT","RATE_DAILY","PERIOD"]
[385919071,1758132651359,-493.29,0.00024859,2]
[385919072,1758132651368,-432.91,0.00024859,2]
[385919073,1758132651378,-671.62,0.00024859,2]
[385919074,1758132651387,-400.0,0.00024859,2]
[385919075,1758132651396,-400.0,0.00024859,2]
[385919076,1758132651406,-450.36,0.00024859,2]
[385919077,1758132651416,-400.0,0.00024859,2]
[385919078,1758132651425,-400.0,0.00024859,2]
[385919079,1758132651435,-920.52,0.00024859,2]
[385919080,1758132651444,-1109.98,0.00024859,2]
[385919081,1758132651453,-704.54,0.00024859,2]
[385919082,1758132651463,-400.0,0.00024859,2]
[385919083,1758132651472,-400.0,0.00024859,2]
[385919084,1758132651481,-505.28,0.00024859,2]
[385919085,1758132651491,-400.0,0.0002486,2]
[385919086,1758132651501,-400.0,0.0002486,2]
[385919087,1758132651510,-400.0,0.0002486,2]
[385919088,1758132651519,-400.0,0.0002486,2]
[385919089,1758132651528,-400.0,0.0002486,2]
[385919090,1758132651538,-400.0,0.0002486,2]
[385919091,1758132651548,-400.0,0.0002486,2]
[385919092,1758132651558,-375.09087335,0.0002486,2]
[385919093,1758132651569,-400.0,0.0002486,2]
[385919094,1758132651579,-335.29400759,0.0002486,2]
[385919095,1758132651588,-400.0,0.0002486,2]
[385919096,1758132651598,-608.7,0.0002486,2]
[385919097,1758132651607,-400.0,0.0002486,2]
[385919098,1758132651621,-400.0,0.0002486,2]
[385919099,1758132651630,-507.18,0.0002486,2]
[385919100,1758132651639,-400.0,0.0002486,2]
[385919101,1758132651649,-400.0,0.0002486,2]
[385919102,1758132651659,-400.0,0.0002486,2]
[385919103,1758132651669,-400.0,0.0002486,2]
[385919104,1758132651678,-400.0,0.0002486,2]
[385919105,1758132651688,-400.0,0.0002486,2]
[385919106,1758132651698,-400.0,0.0002486,2]
[385919107,1758132651708,-400.0,0.0002486,2]
[385919108,1758132651717,-400.0,0.0002486,2]
[385919109,1758132651726,-190.96642189,0.0002486,2]
[385919110,1758132651735,-400.0,0.0002486,2]
[385919111,1758132651745,-400.0,0.0002486,2]
[385919112,1758132651754,-400.0,0.0002486,2]
[385919113,1758132651764,-400.0,0.0002486,2]
[385919114,1758132651773,-400.0,0.0002486,2]
[385919115,1758132651782,-400.0,0.0002486,2]
[385919116,1758132651792,-400.0,0.0002486,2]
[385919117,1758132651801,-400.0,0.0002486,2]
[385919118,1758132651810,-384.43312352,0.0002486,2]
[385919119,1758132651822,-400.0,0.0002486,2]
[385919120,1758132651831,-400.0,0.0002486,2]
[385919121,1758132651840,-400.0,0.0002486,2]
[385919122,1758132651849,-400.0,0.0002486,2]
[385919123,1758132651858,-400.0,0.0002486,2]
[385919124,1758132651868,-400.0,0.0002486,2]
[385919125,1758132651877,-400.0,0.0002486,2]
[385919126,1758132651886,-400.0,0.0002486,2]
[385919127,1758132651895,-400.0,0.0002486,2]
[385919128,1758132651904,-367.80380399,0.0002486,2]
[385919129,1758132651913,-400.0,0.0002486,2]
[385919130,1758132651922,-400.0,0.0002486,2]
[385919131,1758132651932,-400.0,0.0002486,2]
[385919132,1758132651940,-400.0,0.0002486,2]
[385919133,1758132651949,-400.0,0.0002486,2]
[385919134,1758132651959,-400.0,0.0002486,2]
[385919135,1758132651968,-400.0,0.0002486,2]
[385919136,1758132651977,-400.0,0.0002486,2]
[385919137,1758132651987,-460.59,0.0002486,2]
[385919138,1758132651996,-400.0,0.0002486,2]
[385919139,1758132652005,-400.0,0.0002486,2]
[385919140,1758132652015,-400.0,0.0002486,2]
[385919141,1758132652024,-400.0,0.0002486,2]
[385919142,1758132652033,-400.0,0.0002486,2]
[385919143,1758132652043,-417.08,0.0002486,2]
[385919144,1758132652051,-400.0,0.0002486,2]
[385919145,1758132652061,-400.0,0.0002486,2]
[385919146,1758132652073,-419.17,0.0002486,2]
[385919147,1758132652082,-432.42,0.0002486,2]
[385919148,1758132652091,-400.0,0.0002486,2]
[385919149,1758132652100,-400.0,0.0002486,2]
[385919150,1758132652109,-400.0,0.0002486,2]
[385919151,1758132652119,-400.0,0.0002486,2]
[385919152,1758132652129,-400.0,0.0002486,2]
[385919153,1758132652138,-400.0,0.0002486,2]
[385919154,1758132652148,-400.0,0.0002486,2]
[385919155,1758132652157,-400.0,0.0002486,2]
[385919156,1758132652167,-400.0,0.0002486,2]
[385919157,1758132652176,-598.0,0.0002486,2]
[385919158,1758132652186,-400.0,0.0002486,2]
[385919159,1758132652195,-612.1,0.0002486,2]
[385919160,1758132652205,-533.61,0.0002486,2]
[385919161,1758132652214,-400.0,0.0002486,2]
[385919162,1758132652224,-400.0,0.0002486,2]
[385919163,1758132652234,-400.0,0.0002486,2]
[385919164,1758132652243,-400.0,0.0002486,2]
[385919165,1758132652252,-400.0,0.0002486,2]
[385919166,1758132652261,-567.79,0.0002486,2]
[385919167,1758132652271,-400.0,0.0002486,2]
[385919168,1758132652280,-400.0,0.0002486,2]
[385919169,1758132652289,-473.76,0.0002486,2]
[385919170,1758132652299,-621.39,0.0002486,2]
[385919171,1758132652308,-400.0,0.0002486,2]
[385919172,1758132652321,-409.33,0.0002486,2]
[385919173,1758132652330,-400.0,0.0002486,2]
[385919174,1758132652339,-400.0,0.0002486,2]
[385919175,1758132652349,-558.37,0.0002486,2]
[385919176,1758132652358,-400.0,0.0002486,2]
[385919177,1758132652368,-400.0,0.0002486,2]
[385919178,1758132652377,-454.9,0.0002486,2]
[385919179,1758132652386,-400.0,0.0002486,2]
[385919180,1758132652396,-400.0,0.0002486,2]
[385919181,1758132652405,-400.0,0.0002486,2]
[385919182,1758132652414,-400.0,0.0002486,2]
[385919183,1758132652423,-400.0,0.0002486,2]
[385919184,1758132652433,-400.0,0.0002486,2]
[385919185,1758132652442,-400.0,0.0002486,2]
[385919186,1758132652454,-400.0,0.0002486,2]
[385919187,1758132652464,-400.0,0.0002486,2]
[385919188,1758132652473,-302.70212501,0.0002486,2]
[385919206,1758132979759,274.0,0.0002002,2]
[385919207,1758132980067,274.0,0.0001958,2]
[385919208,1758132980664,274.0,0.0001915,2]
[385919215,1758133200939,475.28,0.00011808,2]
[385919216,1758133201191,475.28,0.00012429,2]
[385919217,1758133202090,475.28,0.00013051,2]
[385919218,1758133202135,475.28,0.00013672,2]
[385919219,1758133202189,475.28,0.00014293,2]
[385919220,1758133202412,475.28,0.00014915,2]
[385919221,1758133202763,475.28,0.00015536,2]
[385919222,1758133202896,475.28,0.00016158,2]
[385919223,1758133203121,475.28,0.00016779,2]
[385919224,1758133203367,475.28,0.00017401,2]
[385919225,1758133203628,475.28,0.00018022,2]
[385919226,1758133203905,475.28,0.00018644,2]
[385919227,1758133204351,475.28,0.00019265,2]
[385919228,1758133204574,475.28,0.00019886,2]
[385919241,1758133562388,2474.44544821,8e-05,2]
[385919242,1758133563985,161.51590721,0.00030136,120]
[385919245,1758133592101,-187.16,0.00020408,2]
[385919246,1758133592123,-250.0,0.00020429,2]
[385919247,1758133592146,-274.0,0.0002045,2]
[385919248,1758133592173,-475.28,0.00020508,2]
[385919249,1758133592197,-274.0,0.0002089,2]
[385919250,1758133592221,-475.28,0.00021129,2]
[385919251,1758133592243,-164.63957416,0.0002122,2]
[385919252,1758133592266,-274.0,0.0002132,2]
[385919253,1758133592290,-475.28,0.00021751,2]
[385919254,1758133592311,-274.0,0.0002176,2]
[385919255,1758133592337,-300.0,0.00021997,2]
[385919256,1758133592367,-276.0,0.00021998,2]
[385919257,1758133592393,-300.0,0.00021998,2]
[385919258,1758133592421,-820.22056871,0.00021998,2]
[385919259,1758133664153,6791.94434977,0.0002,5]
[385919276,1758133831579,-164.63957416,0.00021899,2]
[385919279,1758133831591,-150.0,0.00021921,2]
[385919281,1758133831600,-1336.56,0.00021969,2]
[385919282,1758133831609,-300.0,0.00021999,2]
[385919283,1758133831619,-1200.0,0.00021999,2]
[385919284,1758133831628,-300.0,0.00021999,2]
[385919285,1758133831637,-151.47,0.00022,2]
[385919286,1758133831647,-150.74,0.00022,2]
[385919287,1758133831658,-150.08,0.00022,2]
[385919288,1758133831668,-152.49,0.00022,2]
[385919289,1758133831678,-152.26,0.00022,2]
[385919290,1758133831688,-152.55,0.00022,2]
[385919291,1758133831697,-150.58,0.00022,2]
[385919292,1758133831707,-151.67,0.00022,2]
[385919293,1758133831716,-173.0,0.00022,2]
[385919294,1758133831726,-201.0,0.00022,2]
[385919295,1758133831735,-274.0,0.0002219,2]
[385919296,1758133831744,-150.0,0.00022315,2]
[385919297,1758133831753,-150.0,0.00022315,2]
[385919298,1758133831762,-150.0,0.00022315,2]
[385919299,1758133831774,-150.0,0.00022315,2]
[385919300,1758133831783,-150.0,0.00022315,2]
[385919301,1758133831793,-150.0,0.00022315,2]
[385919302,1758133831803,-150.0,0.00022315,2]
[385919303,1758133831812,-150.0,0.00022315,2]
[385919304,1758133831822,-150.0,0.00022315,2]
[385919305,1758133831831,-150.0,0.00022315,2]
[385919306,1758133831841,-150.0,0.00022315,2]
[385919307,1758133831851,-200.0,0.00022337,2]
[385919308,1758133831860,-612.36,0.00022361,2]
[385919309,1758133831871,-475.28,0.00022372,2]
[385919310,1758133831880,-381.54,0.00022449,2]
[385919311,1758133831890,-836.0,0.00022457,2]
[385919312,1758133831900,-151.0,0.00022458,2]
[385919313,1758133831910,-151.0,0.00022458,2]
[385919314,1758133831919,-151.0,0.00022458,2]
[385919315,1758133831929,-200.0,0.00022458,2]
[385919316,1758133831939,-151.0,0.00022458,2]
[385919317,1758133831948,-500.0,0.00022458,2]
[385919318,1758133831958,-151.0,0.00022458,2]
[385919319,1758133831968,-500.0,0.00022458,2]
[385919320,1758133831978,-151.0,0.00022458,2]
[385919321,1758133831988,-500.0,0.00022458,2]
[385919322,1758133831998,-151.0,0.00022458,2]
[385919323,1758133832007,-533.84080379,0.00022458,2]
[385919324,1758133832017,-151.0,0.00022458,2]
[385919325,1758133832026,-151.0,0.00022458,2]
[385919326,1758133832036,-151.0,0.00022458,2]
[385919327,1758133832046,-151.0,0.00022458,2]
[385919328,1758133832056,-151.0,0.00022458,2]
[385919329,1758133832065,-151.0,0.00022458,2]
[385919330,1758133832074,-151.0,0.00022458,2]
[385919331,1758133832084,-151.0,0.00022458,2]
[385919332,1758133832093,-151.0,0.00022458,2]
[385919333,1758133832103,-151.0,0.00022458,2]
[385919334,1758133832112,-151.0,0.00022458,2]
[385919335,1758133832122,-151.0,0.00022458,2]
[385919336,1758133832132,-151.0,0.00022458,2]
[385919337,1758133832142,-151.0,0.00022458,2]
[385919338,1758133832152,-151.0,0.00022458,2]
[385919339,1758133832161,-151.0,0.00022458,2]
[385919340,1758133832170,-151.0,0.00022458,2]
[385919341,1758133832180,-215.62351824,0.00022458,2]
[385919342,1758133832190,-5000.0,0.00022485,2]
[385919343,1758133832199,-171.62,0.00022548,2]
[385919344,1758133832209,-19691.23,0.00022569,7]
[385919345,1758133832218,-150.0,0.00022601,7]
[385919346,1758133832227,-274.0,0.0002262,2]
[385919347,1758133832237,-150.0,0.00022669,4]
[385919348,1758133832246,-460.0,0.00022684,2]
[385919349,1758133832256,-150.0,0.00022811,4]
[385919350,1758133832265,-150.0,0.00022935,4]
[385919351,1758133832275,-250.0,0.00022948,2]
[385919352,1758133832286,-475.28,0.00022994,2]
[385919353,1758133832301,-173.0,0.00023014,7]
[385919354,1758133832311,-202.0,0.00023014,7]
[385919355,1758133832321,-150.0,0.00023023,4]
[385919356,1758133832330,-274.0,0.0002306,2]
[385919357,1758133832342,-2074.95677252,0.00023268,2]
[385919358,1758133832351,-150.0,0.00023307,4]
[385919359,1758133832360,-150.0,0.00023345,2]
[385919360,1758133832371,-257.09156473,0.00023346,2]
[385919361,1758133832381,-327.66571976,0.00023348,2]
[385919362,1758133832391,-398.23987478,0.00023349,2]
[385919363,1758133832400,-468.81402981,0.00023351,2]
[385919364,1758133832410,-539.38818483,0.00023352,2]
[385919365,1758133832419,-609.96233986,0.00023354,2]
[385919366,1758133832429,-680.53649488,0.00023355,2]
[385919367,1758133832438,-751.11064991,0.00023357,2]
[385919368,1758133832448,-821.68480493,0.00023358,2]
[385919369,1758133832458,-824.69,0.00023358,2]
[385919370,1758133832467,-417.39,0.00023368,2]
[385919371,1758133832477,-9999.99,0.00023368,2]
[385919372,1758133832486,-1525.06762812,0.00023368,2]
[385919373,1758133832542,-1393.58237188,0.00023368,2]
[385919374,1758133832552,-504.1,0.00023368,2]
[385919375,1758133832565,-5121.75641285,0.00023368,2]
[385919376,1758133832576,-1076.99179999,0.00023368,2]
[385919377,1758133832588,-463.63969858,0.00023368,2]
[385919378,1758133832600,-1341.7632352,0.00023368,2]
[385919379,1758133832624,-1000.13225756,0.00023368,2]
[385919380,1758133832647,-518.87619248,0.00023368,2]
[385919381,1758133832667,-1795.86198103,0.00023368,2]
[385919382,1758133832679,-299.80550023,0.00023368,2]
[385919383,1758133832691,-1870.181,0.00023368,2]
[385919384,1758133832702,-5765.4675,0.00023368,2]
[385919385,1758133832714,-4453.67059996,0.00023368,2]
[385919392,1758133837554,-553.98783773,0.00023367,2]
[385919393,1758133837565,-313.41966232,0.00023367,2]
[385919394,1758133837575,-500.0,0.00023367,2]
[385919395,1758133837586,-43071.09319131,0.00023368,2]
[385919396,1758133837598,-684.21269939,0.00023368,2]
[385919400,1758133837873,-3462.459,0.00023368,2]
[385919417,1758133839535,-207.80466743,0.00023367,2]
[385919418,1758133839545,-20760.13368321,0.00023368,2]
[385919419,1758133839558,-5934.93524821,0.00023368,2]
[385919420,1758133839568,-9999.99,0.00023368,2]
[385919421,1758133839579,-999.99,0.00023368,2]
[385919422,1758133839589,-4524.00025079,0.00023368,2]
[385919423,1758133839618,-5475.98974921,0.00023368,2]
[385919424,1758133839628,-1576.52,0.00023368,2]
[385919425,1758133839638,-9999.99,0.00023368,2]
[385919426,1758133839647,-5602.13169119,0.00023368,2]
[385919427,1758133839660,-4397.85830881,0.00023368,2]
[385919428,1758133839670,-499.99,0.00023368,2]
[385919429,1758133839679,-1176.19,0.00023368,2]
[385919430,1758133839690,-6007.38838901,0.00023368,2]
[385919431,1758133839706,-7715.76161099,0.00023368,2]
[385919432,1758133839716,-150.99,0.00023368,2]
[385919433,1758133839725,-150.99,0.00023368,2]
[385919434,1758133839735,-304.28,0.00023368,2]
[385919435,1758133839745,-1439.67,0.00023368,2]
[385919436,1758133839755,-19028.30838901,0.00023368,2]
[385919437,1758133839766,-449.3332721,0.00023368,2]
[385919438,1758133839796,-2320.632,0.00023368,2]
[385919439,1758133839925,-98009.78633889,0.00023368,2]
[385919440,1758133839935,-341.71,0.00023368,2]
[385919441,1758133839945,-337.96102449,0.00023373,2]
[385919442,1758133839955,-500.0,0.00023373,2]
[385919443,1758133839965,-502.24371908,0.00023373,2]
[385919444,1758133839974,-500.0,0.00023373,2]
[385919445,1758133839984,-500.0,0.00023373,2]
[385919446,1758133839994,-150.0,0.00023378,4]
[385919447,1758133840004,-612.36,0.00023479,2]
[385919448,1758133840014,-2074.9567725,0.00023488,2]
[385919449,1758133840026,-274.0,0.0002349,2]
[385919450,1758133840036,-473.0,0.000235,2]
[385919451,1758133840045,-200.0,0.000235,2]
[385919452,1758133840056,-150.0,0.00023555,4]
[385919453,1758133840066,-150.0,0.00023555,4]
[385919454,1758133840076,-150.0,0.00023555,4]
[385919456,1758133840086,-150.0,0.00023555,4]
[385919459,1758133840096,-197.29,0.00023572,2]
[385919461,1758133840106,-475.28,0.00023615,2]
[385919463,1758133840115,-2074.9567725,0.00023708,2]
[385919465,1758133840126,-356.17,0.00023726,2]
[385919467,1758133840135,-150.0,0.00023732,4]
[385919469,1758133840145,-2887.29,0.00023784,2]
[385919471,1758133840156,-150.0,0.00023803,4]
[385919473,1758133840166,-1000.0,0.00023921,2]
[385919475,1758133840176,-1000.0,0.00023921,2]
[385919478,1758133840186,-2074.9567725,0.00023928,2]
[385919480,1758133840200,-274.0,0.0002393,2]
[385919482,1758133840210,-1000.0,0.00023938,2]
[385919484,1758133840220,-168.0,0.00023941,2]
[385919486,1758133840229,-272.0,0.00023953,2]
[385919488,1758133840240,-2261.07594662,0.00023999,2]
[385919491,1758133840250,-5000.00460933,0.00024,5]
[385919493,1758133840260,-1680.0,0.00024018,2]
[385919495,1758133840269,-1187.7220181,0.00024033,2]
[385919497,1758133840281,-3518.0158093,0.00024033,2]
[385919499,1758133840291,-831.57,0.00024038,2]
[385919501,1758133840305,-1660.86,0.00024038,2]
[385919503,1758133840315,-1000.0,0.00024038,2]
[385919505,1758133840325,-1032.08,0.00024038,2]
[385919507,1758133840335,-843.65,0.00024038,2]
[385919510,1758133840345,-516.31,0.00024038,2]
[385919512,1758133840355,-921.08,0.00024038,2]
[385919514,1758133840364,-932.75,0.00024038,2]
[385919516,1758133840375,-423.36,0.00024038,2]
[385919518,1758133840385,-1060.76,0.00024038,2]
[385919520,1758133840394,-515.21,0.00024038,2]
[385919522,1758133840405,-515.21,0.00024038,2]
[385919525,1758133840419,-553.95,0.00024038,2]
[385919527,1758133840428,-400.0,0.00024038,2]
[385919529,1758133840438,-500.0,0.00024038,2]
[385919531,1758133840448,-400.0,0.00024038,2]
[385919533,1758133840458,-681.37,0.00024038,2]
[385919535,1758133840468,-755.33,0.00024038,2]
[385919537,1758133840478,-661.0,0.00024038,2]
[385919539,1758133840488,-859.7,0.00024038,2]
[385919541,1758133840498,-400.0,0.00024038,2]
[385919543,1758133840509,-713.46,0.00024038,2]
[385919545,1758133840519,-400.0,0.00024038,2]
[385919547,1758133840530,-279.635608,0.00024046,2]
[385919570,1758133840672,-248.71531821,0.00024046,2]
[385919572,1758133840682,-157.94194144,0.00024046,2]
[385919574,1758133840692,-371.95838424,0.00024046,2]
[385919576,1758133840702,-395.82282714,0.00024073,2]
[385919578,1758133840711,-1242.06598562,0.00024074,2]
[385919580,1758133840720,-150.0,0.00024086,4]
[385919582,1758133840730,-4596.01520987,0.000241,2]
[385919584,1758133840740,-1088.0,0.00024113,2]
[385919586,1758133840749,-177.0,0.00024164,7]
[385919588,1758133840758,-500.0,0.00024173,2]
[385919590,1758133840767,-391.05969918,0.00024173,2]
[385919592,1758133840778,-500.0,0.00024173,2]
[385919594,1758133840787,-500.0,0.00024173,2]
[385919596,1758133840797,-400.0,0.00024173,2]
[385919598,1758133840806,-400.0,0.00024173,2]
[385919600,1758133840815,-400.0,0.00024173,2]
[385919602,1758133840824,-400.0,0.00024173,2]
[385919604,1758133840833,-400.0,0.00024173,2]
[385919605,1758133840842,-464.35,0.00024173,2]
[385919607,1758133840851,-736.66,0.00024173,2]
[385919608,1758133840861,-515.89,0.00024173,2]
[385919609,1758133840870,-400.0,0.00024173,2]
[385919610,1758133840880,-627.75,0.00024173,2]
[385919611,1758133840890,-812.86,0.00024173,2]
[385919612,1758133840899,-549.98,0.00024173,2]
[385919613,1758133840909,-400.0,0.00024173,2]
[385919614,1758133840918,-400.0,0.00024173,2]
[385919615,1758133840928,-449.02,0.00024173,2]
[385919616,1758133840937,-400.0,0.00024173,2]
[385919617,1758133840947,-400.0,0.00024173,2]
[385919618,1758133840956,-428.14,0.00024173,2]
[385919619,1758133840966,-400.0,0.00024173,2]
[385919620,1758133840976,-531.64,0.00024173,2]
[385919621,1758133840986,-479.37,0.00024173,2]
[385919622,1758133840996,-400.0,0.00024173,2]
[385919623,1758133841006,-400.0,0.00024173,2]
[385919624,1758133841016,-400.0,0.00024173,2]
[385919625,1758133841026,-554.75,0.00024173,2]
[385919626,1758133841036,-400.0,0.00024173,2]
[385919627,1758133841045,-400.0,0.00024173,2]
[385919628,1758133841060,-400.0,0.00024173,2]
[385919629,1758133841074,-400.0,0.00024173,2]
[385919630,1758133841084,-606.43,0.00024173,2]
[385919631,1758133841093,-400.0,0.00024173,2]
[385919632,1758133841103,-400.0,0.00024173,2]
[385919633,1758133841113,-513.62,0.00024173,2]
[385919634,1758133841122,-400.0,0.00024173,2]
[385919635,1758133841131,-401.6357566,0.00024173,2]
[385919636,1758133841141,-500.0,0.00024173,2]
[385919637,1758133841151,-400.0,0.00024173,2]
[385919638,1758133841161,-400.0,0.00024173,2]
[385919639,1758133841171,-400.0,0.00024173,2]
[385919640,1758133841181,-400.0,0.00024173,2]
[385919641,1758133841191,-400.0,0.00024173,2]
[385919642,1758133841201,-488.46,0.00024173,2]
[385919643,1758133841210,-400.0,0.00024173,2]
[385919644,1758133841220,-410.58,0.00024173,2]
[385919645,1758133841230,-400.0,0.00024173,2]
[385919646,1758133841240,-400.0,0.00024173,2]
[385919647,1758133841250,-400.0,0.00024173,2]
[385919648,1758133841260,-437.2,0.00024173,2]
[385919649,1758133841271,-400.0,0.00024173,2]
[385919650,1758133841282,-400.0,0.00024173,2]
[385919651,1758133841292,-500.0,0.00024173,2]
[385919652,1758133841306,-400.0,0.00024173,2]
[385919653,1758133841316,-400.0,0.00024173,2]
[385919654,1758133841326,-400.0,0.00024173,2]
[385919655,1758133841335,-400.0,0.00024173,2]
[385919656,1758133841345,-400.0,0.00024173,2]
[385919657,1758133841355,-400.0,0.00024173,2]
[385919658,1758133841365,-400.0,0.00024173,2]
[385919659,1758133841376,-400.0,0.00024173,2]
[385919660,1758133841386,-488.61,0.00024173,2]
[385919661,1758133841395,-400.0,0.00024173,2]
[385919662,1758133841405,-400.0,0.00024173,2]
[385919663,1758133841414,-400.0,0.00024173,2]
[385919664,1758133841425,-400.0,0.00024173,2]
[385919665,1758133841434,-400.0,0.00024173,2]
[385919666,1758133841444,-400.0,0.00024173,2]
[385919667,1758133841453,-400.0,0.00024173,2]
[385919668,1758133841463,-400.0,0.00024173,2]
[385919669,1758133841478,-400.0,0.00024173,2]
[385919670,1758133841488,-400.0,0.00024173,2]
[385919671,1758133841500,-400.0,0.00024173,2]
[385919672,1758133841510,-400.0,0.00024173,2]
[385919673,1758133841520,-400.0,0.00024173,2]
[385919674,1758133841533,-400.0,0.00024173,2]
[385919675,1758133841543,-459.72,0.00024173,2]
[385919676,1758133841553,-529.36,0.00024173,2]
[385919677,1758133841563,-400.0,0.00024173,2]
[385919678,1758133841573,-400.0,0.00024173,2]
[385919679,1758133841584,-400.0,0.00024173,2]
[385919680,1758133841594,-400.0,0.00024173,2]
[385919681,1758133841604,-519.15,0.00024173,2]
[385919682,1758133841614,-400.0,0.00024173,2]
[385919683,1758133841623,-400.0,0.00024173,2]
[385919684,1758133841633,-400.0,0.00024173,2]
[385919685,1758133841643,-400.0,0.00024173,2]
[385919686,1758133841652,-488.28,0.00024173,2]
[385919687,1758133841662,-400.0,0.00024173,2]
[385919688,1758133841672,-400.0,0.00024173,2]
[385919689,1758133841681,-418.89,0.00024173,2]
[385919690,1758133841691,-400.0,0.00024173,2]
[385919691,1758133841701,-884.88,0.00024173,2]
[385919692,1758133841710,-558.29,0.00024173,2]
[385919693,1758133841720,-462.66,0.00024173,2]
[385919694,1758133841729,-432.41,0.00024173,2]
[385919695,1758133841739,-400.0,0.00024173,2]
[385919696,1758133841748,-659.27,0.00024173,2]
[385919697,1758133841758,-539.06,0.00024173,2]
[385919698,1758133841767,-620.37,0.00024173,2]
[385919699,1758133841779,-400.0,0.00024173,2]
[385919700,1758133841789,-586.0,0.00024173,2]
[385919701,1758133841799,-401.47217206,0.00024173,2]
[385919702,1758133841809,-599.57,0.00024173,2]
[385919703,1758133841819,-462.74,0.00024173,2]
[385919704,1758133841829,-411.42,0.00024173,2]
[385919705,1758133841839,-400.0,0.00024173,2]
[385919706,1758133841849,-400.0,0.00024173,2]
[385919707,1758133841858,-400.0,0.00024173,2]
[385919708,1758133841868,-400.0,0.00024173,2]
[385919709,1758133841879,-400.0,0.00024173,2]
[385919710,1758133841888,-400.0,0.00024173,2]
[385919711,1758133841903,-400.0,0.00024173,2]
[385919712,1758133841914,-400.0,0.00024173,2]
[385919713,1758133841925,-1122.2,0.00024173,2]
[385919714,1758133841936,-400.0,0.00024173,2]
[385919715,1758133841947,-510.63,0.00024173,2]
[385919716,1758133841959,-400.0,0.00024173,2]
[385919717,1758133841969,-474.35,0.00024173,2]
[385919718,1758133841980,-400.0,0.00024173,2]
[385919719,1758133841991,-400.0,0.00024173,2]
[385919720,1758133842002,-400.0,0.00024173,2]
[385919721,1758133842011,-466.59,0.00024173,2]
[385919722,1758133842021,-881.4,0.00024173,2]
[385919723,1758133842032,-400.0,0.00024173,2]
[385919724,1758133842042,-400.0,0.00024173,2]
[385919725,1758133842052,-680.89,0.00024173,2]
[385919726,1758133842062,-400.0,0.00024173,2]
[385919727,1758133842072,-400.0,0.00024173,2]
[385919728,1758133842082,-158.941074,0.00024173,2]
[385919729,1758133842095,-400.0,0.00024173,2]
[385919730,1758133842106,-171.345514,0.00024173,2]
[385919731,1758133842116,-165.508393,0.00024173,2]
[385919732,1758133842126,-157.144396,0.00024173,2]
[385919733,1758133842140,-202.56637,0.00024173,2]
[385919734,1758133842150,-630.4,0.00024173,2]
[385919735,1758133842160,-400.0,0.00024173,2]
[385919736,1758133842170,-1728.21,0.00024173,2]
[385919737,1758133842180,-400.0,0.00024173,2]
[385919738,1758133842190,-500.0,0.00024173,2]
[385919739,1758133842201,-400.0,0.00024173,2]
[385919740,1758133842212,-474.29,0.00024173,2]